[Event "Betsys MČR v online bleskovém šachu 2021"]
[Site "Chess.com"]
[Date "2021.04.17"]
[Round "7"]
[White "fadamos"]
[Black "NeumanPetr"]
[Result "1-0"]
[WhiteElo "2304"]
[BlackElo "2484"]
[TimeControl "180+1"]
[EndTime "10:11:02 PDT"]
[Termination "Uživatel fadamos zvítězil matem"]

1. e4 {[%clk 0:03:00.4]} 1... d6 {[%clk 0:02:59.9]} 2. d4 {[%clk 0:02:59.3]}
2... Nf6 {[%clk 0:03:00.7]} 3. Nc3 {[%clk 0:02:58.9]} 3... e5 {[%clk 0:03:01.4]}
4. Nf3 {[%clk 0:02:56.8]} 4... Nbd7 {[%clk 0:02:59.6]} 5. g4 {[%clk 0:02:52.8]}
5... Nxg4 {[%clk 0:02:56.9]} 6. Rg1 {[%clk 0:02:52.8]} 6... Ngf6 {[%clk
0:02:55.7]} 7. Bg5 {[%clk 0:02:50]} 7... c6 {[%clk 0:02:48.8]} 8. Qd2 {[%clk
0:02:49.1]} 8... h6 {[%clk 0:02:35.1]} 9. Be3 {[%clk 0:02:45.6]} 9... Nh5 {[%clk
0:02:29.5]} 10. O-O-O {[%clk 0:02:38.9]} 10... Qf6 {[%clk 0:02:29.5]} 11. Bh3
{[%clk 0:02:13.3]} 11... Nb6 {[%clk 0:01:57]} 12. Bxc8 {[%clk 0:02:07.5]} 12...
Rxc8 {[%clk 0:01:53.1]} 13. dxe5 {[%clk 0:02:00.2]} 13... Qxf3 {[%clk
0:01:46.5]} 14. Bxb6 {[%clk 0:01:52.4]} 14... axb6 {[%clk 0:01:45.1]} 15. exd6
{[%clk 0:01:53]} 15... Kd8 {[%clk 0:01:00.3]} 16. Kb1 {[%clk 0:01:47.4]} 16...
Qf6 {[%clk 0:00:46.2]} 17. Qe3 {[%clk 0:01:43]} 17... c5 {[%clk 0:00:38]} 18.
Nd5 {[%clk 0:01:41.6]} 18... Qe6 {[%clk 0:00:34.5]} 19. e5 {[%clk 0:00:58.4]}
19... Rc6 {[%clk 0:00:33.8]} 20. Qa3 {[%clk 0:00:57.4]} 20... Qc8 {[%clk
0:00:10.3]} 21. Rge1 {[%clk 0:00:55.4]} 21... g6 {[%clk 0:00:09.2]} 22. Qa7
{[%clk 0:00:48.5]} 22... Bg7 {[%clk 0:00:06.4]} 23. d7 {[%clk 0:00:48.3]} 23...
Qxd7 {[%clk 0:00:01.9]} 24. Nxb6 {[%clk 0:00:46.2]} 24... Qxd1+ {[%clk
0:00:01.3]} 25. Rxd1+ {[%clk 0:00:46.3]} 25... Kc7 {[%clk 0:00:02]} 26. Rd7#
{[%clk 0:00:45.4]} 1-0

[Event "Betsys MČR v online bleskovém šachu 2021"]
[Site "Chess.com"]
[Date "2021.04.17"]
[Round "7"]
[White "Zelezny1984"]
[Black "DrDANDog"]
[Result "1-0"]
[WhiteElo "2053"]
[BlackElo "1763"]
[TimeControl "180+1"]
[EndTime "10:11:02 PDT"]
[Termination "Uživatel Zelezny1984 zvítězil po vzdání soupeře"]

1. e4 {[%clk 0:03:00.9]} 1... Nf6 {[%clk 0:02:59.8]} 2. Nc3 {[%clk 0:03:00.2]}
2... d5 {[%clk 0:02:59.1]} 3. e5 {[%clk 0:03:00.3]} 3... Ne4 {[%clk 0:02:59.4]}
4. Nxe4 {[%clk 0:03:00.6]} 4... dxe4 {[%clk 0:03:00.3]} 5. d4 {[%clk 0:03:00.7]}
5... Nc6 {[%clk 0:02:59.4]} 6. Be3 {[%clk 0:02:47.3]} 6... Bf5 {[%clk
0:02:57.4]} 7. Bb5 {[%clk 0:02:41.1]} 7... e6 {[%clk 0:02:54.5]} 8. Ne2 {[%clk
0:02:26.9]} 8... Qd5 {[%clk 0:02:54.4]} 9. c4 {[%clk 0:02:19.9]} 9... Qd8 {[%clk
0:02:44.7]} 10. d5 {[%clk 0:01:55.3]} 10... Bb4+ {[%clk 0:02:34.3]} 11. Nc3
{[%clk 0:01:53.1]} 11... exd5 {[%clk 0:02:28.2]} 12. Qxd5 {[%clk 0:01:39.4]}
12... Bxc3+ {[%clk 0:02:17.1]} 13. bxc3 {[%clk 0:01:38.5]} 13... Bd7 {[%clk
0:02:05.8]} 14. Qxe4 {[%clk 0:01:28.7]} 14... O-O {[%clk 0:02:02.7]} 15. O-O
{[%clk 0:01:27]} 15... Qe7 {[%clk 0:02:00.4]} 16. f4 {[%clk 0:01:16.4]} 16... a6
{[%clk 0:02:00.5]} 17. Ba4 {[%clk 0:01:01]} 17... Rfe8 {[%clk 0:01:48]} 18. Bc2
{[%clk 0:00:59.3]} 18... g6 {[%clk 0:01:43]} 19. Qf3 {[%clk 0:00:45.6]} 19...
Be6 {[%clk 0:01:39.4]} 20. c5 {[%clk 0:00:35.1]} 20... Rad8 {[%clk 0:01:34.1]}
21. Rad1 {[%clk 0:00:35.4]} 21... Bxa2 {[%clk 0:01:29.5]} 22. Be4 {[%clk
0:00:31.9]} 22... Bc4 {[%clk 0:01:20.5]} 23. Rfe1 {[%clk 0:00:30.1]} 23... Bb5
{[%clk 0:01:10.5]} 24. Bd4 {[%clk 0:00:22]} 24... Nxd4 {[%clk 0:01:08.3]} 25.
cxd4 {[%clk 0:00:22.9]} 25... c6 {[%clk 0:01:07.1]} 26. f5 {[%clk 0:00:21.7]}
26... Ba4 {[%clk 0:01:00.7]} 27. f6 {[%clk 0:00:20.5]} 27... Qe6 {[%clk
0:00:58.9]} 28. Rb1 {[%clk 0:00:20.4]} 28... Rxd4 {[%clk 0:00:58.2]} 29. Qe3
{[%clk 0:00:19.5]} 29... Red8 {[%clk 0:00:55.7]} 30. Qh6 {[%clk 0:00:19.4]} 1-0

[Event "Betsys MČR v online bleskovém šachu 2021"]
[Site "Chess.com"]
[Date "2021.04.17"]
[Round "7"]
[White "Tomasbezdek07"]
[Black "Bartusman"]
[Result "0-1"]
[WhiteElo "1700"]
[BlackElo "1971"]
[TimeControl "180+1"]
[EndTime "10:11:03 PDT"]
[Termination "Uživatel Bartusman zvítězil po vzdání soupeře"]

1. e4 {[%clk 0:03:00.9]} 1... c5 {[%clk 0:02:56.6]} 2. c3 {[%clk 0:03:00.5]}
2... g6 {[%clk 0:02:56.3]} 3. d4 {[%clk 0:03:00.6]} 3... cxd4 {[%clk 0:02:56.9]}
4. cxd4 {[%clk 0:02:58.6]} 4... d5 {[%clk 0:02:57.3]} 5. exd5 {[%clk 0:02:57.5]}
5... Nf6 {[%clk 0:02:57]} 6. Nf3 {[%clk 0:02:56.9]} 6... Bg7 {[%clk 0:02:56.8]}
7. Nc3 {[%clk 0:02:52.4]} 7... O-O {[%clk 0:02:53.2]} 8. Be3 {[%clk 0:02:51.9]}
8... Nxd5 {[%clk 0:02:52.8]} 9. Nxd5 {[%clk 0:02:50.1]} 9... Qxd5 {[%clk
0:02:52.7]} 10. Be2 {[%clk 0:02:48.3]} 10... Nc6 {[%clk 0:02:52]} 11. O-O {[%clk
0:02:47.2]} 11... Rd8 {[%clk 0:02:51.9]} 12. Rc1 {[%clk 0:02:19.9]} 12... Nxd4
{[%clk 0:02:47.7]} 13. Nxd4 {[%clk 0:02:18.5]} 13... Bxd4 {[%clk 0:02:47.3]} 14.
Bf3 {[%clk 0:02:16]} 14... Qe5 {[%clk 0:02:22.7]} 15. Re1 {[%clk 0:02:07.1]}
15... Be6 {[%clk 0:02:06.9]} 16. Bxd4 {[%clk 0:01:43]} 16... Qxd4 {[%clk
0:02:03.5]} 17. Qxd4 {[%clk 0:01:42.1]} 17... Rxd4 {[%clk 0:02:03.3]} 18. Bxb7
{[%clk 0:01:39.2]} 18... Rb8 {[%clk 0:02:03.3]} 19. Rc7 {[%clk 0:01:35]} 19...
Bxa2 {[%clk 0:01:52.5]} 20. Rcxe7 {[%clk 0:01:31.9]} 20... Be6 {[%clk
0:01:47.4]} 21. Rc1 {[%clk 0:01:20.7]} 21... Rb4 {[%clk 0:01:44.8]} 22. Bf3
{[%clk 0:00:55.3]} 22... a5 {[%clk 0:01:41.5]} 23. Ra1 {[%clk 0:00:46.8]} 23...
a4 {[%clk 0:01:40.8]} 24. h3 {[%clk 0:00:45.8]} 24... Rxb2 {[%clk 0:01:34.3]}
25. Rxa4 {[%clk 0:00:44.4]} 25... Rc8 {[%clk 0:01:28.8]} 26. Raa7 {[%clk
0:00:21.5]} 26... Rc1+ {[%clk 0:01:26.2]} 27. Kh2 {[%clk 0:00:21.9]} 27... Rxf2
{[%clk 0:01:26.3]} 28. Bg4 {[%clk 0:00:21]} 28... Bxg4 {[%clk 0:01:24.6]} 29.
hxg4 {[%clk 0:00:20.2]} 29... Rcc2 {[%clk 0:01:25.3]} 30. Ra8+ {[%clk
0:00:18.2]} 30... Kg7 {[%clk 0:01:25.1]} 31. Raa7 {[%clk 0:00:17.1]} 31... Rxg2+
{[%clk 0:01:24.8]} 32. Kh3 {[%clk 0:00:17.6]} 32... Rgf2 {[%clk 0:01:23.3]} 33.
g5 {[%clk 0:00:16.6]} 33... Rc5 {[%clk 0:01:10.8]} 34. Kh4 {[%clk 0:00:14.3]}
34... Rff5 {[%clk 0:01:08.5]} 35. Red7 {[%clk 0:00:12.9]} 35... Rc4+ {[%clk
0:01:08.3]} 36. Kh3 {[%clk 0:00:11.6]} 36... Rcf4 {[%clk 0:01:08.5]} 37. Ra8
{[%clk 0:00:07.9]} 37... Rxg5 {[%clk 0:01:08.1]} 0-1

[Event "Betsys MČR v online bleskovém šachu 2021"]
[Site "Chess.com"]
[Date "2021.04.17"]
[Round "7"]
[White "Asmodai5"]
[Black "Figo5144"]
[Result "1-0"]
[WhiteElo "1088"]
[BlackElo "577"]
[TimeControl "180+1"]
[EndTime "10:11:04 PDT"]
[Termination "Uživatel Asmodai5 zvítězil matem"]

1. e4 {[%clk 0:02:59.9]} 1... d5 {[%clk 0:02:59.7]} 2. exd5 {[%clk 0:02:58.4]}
2... Qxd5 {[%clk 0:02:59.3]} 3. Nc3 {[%clk 0:02:57.9]} 3... Qa5 {[%clk
0:02:59.1]} 4. Nf3 {[%clk 0:02:53.7]} 4... c6 {[%clk 0:02:58.9]} 5. d3 {[%clk
0:02:51.1]} 5... Bf5 {[%clk 0:02:58.5]} 6. Be2 {[%clk 0:02:48.3]} 6... e6 {[%clk
0:02:57.5]} 7. O-O {[%clk 0:02:46.3]} 7... Bb4 {[%clk 0:02:55.7]} 8. Bd2 {[%clk
0:02:45.1]} 8... Nd7 {[%clk 0:02:54.1]} 9. a3 {[%clk 0:02:36.8]} 9... Bxc3
{[%clk 0:02:51.2]} 10. Bxc3 {[%clk 0:02:35.5]} 10... Qc7 {[%clk 0:02:50.4]} 11.
Nd4 {[%clk 0:02:29]} 11... f6 {[%clk 0:02:48.3]} 12. Nxf5 {[%clk 0:02:27.8]}
12... exf5 {[%clk 0:02:46.8]} 13. Bf3 {[%clk 0:02:27.1]} 13... O-O-O {[%clk
0:02:43.8]} 14. Re1 {[%clk 0:02:23.9]} 14... Ne5 {[%clk 0:02:30.1]} 15. Bxe5
{[%clk 0:02:21.2]} 15... fxe5 {[%clk 0:02:29.6]} 16. Re3 {[%clk 0:02:14.5]}
16... Nf6 {[%clk 0:02:28.7]} 17. Qe2 {[%clk 0:02:10]} 17... f4 {[%clk
0:02:27.3]} 18. Rxe5 {[%clk 0:02:08.6]} 18... g5 {[%clk 0:02:08]} 19. Rxg5
{[%clk 0:01:42.4]} 19... Rhe8 {[%clk 0:01:59]} 20. Qd2 {[%clk 0:01:41.6]} 20...
h6 {[%clk 0:01:53.5]} 21. Rg6 {[%clk 0:01:28.8]} 21... Ng8 {[%clk 0:01:40]} 22.
Re1 {[%clk 0:01:04.9]} 22... Rf8 {[%clk 0:01:32.1]} 23. Bg4+ {[%clk 0:00:54.8]}
23... Kb8 {[%clk 0:01:29.9]} 24. Ree6 {[%clk 0:00:48.6]} 24... b6 {[%clk
0:01:17.8]} 25. Rxc6 {[%clk 0:00:45.1]} 25... Qxc6 {[%clk 0:01:15.9]} 26. Rxc6
{[%clk 0:00:43.3]} 26... Kb7 {[%clk 0:01:03.4]} 27. Bf3 {[%clk 0:00:33.2]} 27...
Rd4 {[%clk 0:01:01.9]} 28. Rd6+ {[%clk 0:00:28.9]} 28... Kc7 {[%clk 0:00:55.3]}
29. Rxd4 {[%clk 0:00:28.9]} 29... Rf6 {[%clk 0:00:49.4]} 30. Rxf4 {[%clk
0:00:28.4]} 30... Rd6 {[%clk 0:00:46.5]} 31. Qc3+ {[%clk 0:00:26.9]} 31... Kd7
{[%clk 0:00:44.2]} 32. Bg4+ {[%clk 0:00:24.8]} 32... Ke7 {[%clk 0:00:41.6]} 33.
Qc7+ {[%clk 0:00:23.4]} 33... Rd7 {[%clk 0:00:40.7]} 34. Qxd7# {[%clk
0:00:22.2]} 1-0

[Event "Betsys MČR v online bleskovém šachu 2021"]
[Site "Chess.com"]
[Date "2021.04.17"]
[Round "7"]
[White "Daffac"]
[Black "patrikvagner"]
[Result "1-0"]
[WhiteElo "2085"]
[BlackElo "1781"]
[TimeControl "180+1"]
[EndTime "10:11:07 PDT"]
[Termination "Uživatel Daffac zvítězil matem"]

1. d4 {[%clk 0:03:00.9]} 1... d5 {[%clk 0:03:00]} 2. Nf3 {[%clk 0:03:00.4]} 2...
Nf6 {[%clk 0:02:59.4]} 3. Bf4 {[%clk 0:02:56.3]} 3... Bf5 {[%clk 0:02:58.5]} 4.
e3 {[%clk 0:02:56.6]} 4... e6 {[%clk 0:02:58.5]} 5. c4 {[%clk 0:02:56.1]} 5...
c6 {[%clk 0:02:58.6]} 6. Nc3 {[%clk 0:02:55]} 6... Nbd7 {[%clk 0:02:58.6]} 7.
Qb3 {[%clk 0:02:54.8]} 7... Qb6 {[%clk 0:02:56.5]} 8. c5 {[%clk 0:02:55]} 8...
Qxb3 {[%clk 0:02:52.5]} 9. axb3 {[%clk 0:02:55.9]} 9... a6 {[%clk 0:02:52.1]}
10. b4 {[%clk 0:02:55.9]} 10... Be7 {[%clk 0:02:51.3]} 11. b5 {[%clk 0:02:56.2]}
11... cxb5 {[%clk 0:02:48.5]} 12. Bxb5 {[%clk 0:02:43.6]} 12... O-O {[%clk
0:02:47.4]} 13. Be2 {[%clk 0:02:36.9]} 13... Rfc8 {[%clk 0:02:45.3]} 14. O-O
{[%clk 0:02:35]} 14... Nb8 {[%clk 0:02:39.1]} 15. Ne5 {[%clk 0:02:32.8]} 15...
Nc6 {[%clk 0:02:37.7]} 16. Nxc6 {[%clk 0:02:27.8]} 16... Rxc6 {[%clk 0:02:36.8]}
17. b4 {[%clk 0:02:28.1]} 17... Rcc8 {[%clk 0:02:35.9]} 18. b5 {[%clk
0:02:10.6]} 18... axb5 {[%clk 0:02:32.4]} 19. Bxb5 {[%clk 0:02:10.8]} 19... Ne4
{[%clk 0:02:26.9]} 20. Nxe4 {[%clk 0:02:06.3]} 20... Bxe4 {[%clk 0:02:26.3]} 21.
f3 {[%clk 0:02:06.1]} 21... Bg6 {[%clk 0:02:24.5]} 22. Kf2 {[%clk 0:02:02.9]}
22... f6 {[%clk 0:02:23.1]} 23. Ke2 {[%clk 0:02:00.7]} 23... Be8 {[%clk
0:02:22.8]} 24. Bxe8 {[%clk 0:01:52.5]} 24... Rxe8 {[%clk 0:02:21.7]} 25. Rfb1
{[%clk 0:01:52.1]} 25... Rxa1 {[%clk 0:02:17.9]} 26. Rxa1 {[%clk 0:01:53]} 26...
Rc8 {[%clk 0:02:15]} 27. Ra7 {[%clk 0:01:50.4]} 27... e5 {[%clk 0:02:13.1]} 28.
Rxb7 {[%clk 0:01:41.1]} 28... Bxc5 {[%clk 0:02:07.2]} 29. Bxe5 {[%clk 0:01:30]}
29... fxe5 {[%clk 0:02:06.1]} 30. dxc5 {[%clk 0:01:26.9]} 30... Rxc5 {[%clk
0:02:05.7]} 31. Kd3 {[%clk 0:01:15.8]} 31... Ra5 {[%clk 0:02:02.2]} 32. Re7
{[%clk 0:01:11.6]} 32... e4+ {[%clk 0:01:58.2]} 33. fxe4 {[%clk 0:01:09]} 33...
dxe4+ {[%clk 0:01:54.6]} 34. Kxe4 {[%clk 0:01:09]} 34... Ra2 {[%clk 0:01:54.4]}
35. Kf3 {[%clk 0:01:08.7]} 35... Kf8 {[%clk 0:01:53.5]} 36. Rb7 {[%clk
0:01:07.9]} 36... Ra6 {[%clk 0:01:52.7]} 37. e4 {[%clk 0:01:02.9]} 37... Re6
{[%clk 0:01:52.2]} 38. g4 {[%clk 0:00:59.2]} 38... h6 {[%clk 0:01:52.3]} 39. h4
{[%clk 0:00:59.2]} 39... Kg8 {[%clk 0:01:52.5]} 40. Kf4 {[%clk 0:00:59]} 40...
Kh7 {[%clk 0:01:52.6]} 41. e5 {[%clk 0:00:57.8]} 41... Kg6 {[%clk 0:01:49.9]}
42. h5+ {[%clk 0:00:51.6]} 42... Kh7 {[%clk 0:01:49.3]} 43. Kf5 {[%clk
0:00:52.5]} 43... Re8 {[%clk 0:01:49.1]} 44. e6 {[%clk 0:00:49.2]} 44... Rf8+
{[%clk 0:01:46.9]} 45. Ke5 {[%clk 0:00:49.5]} 45... Rf1 {[%clk 0:01:46.3]} 46.
e7 {[%clk 0:00:46.7]} 46... Re1+ {[%clk 0:01:46.2]} 47. Kd6 {[%clk 0:00:46.9]}
47... Rd1+ {[%clk 0:01:45.7]} 48. Ke6 {[%clk 0:00:47.3]} 48... Re1+ {[%clk
0:01:44.7]} 49. Kf7 {[%clk 0:00:47.7]} 49... Rf1+ {[%clk 0:01:44.6]} 50. Ke8
{[%clk 0:00:44.7]} 50... Re1 {[%clk 0:01:44.4]} 51. Kd8 {[%clk 0:00:44.6]} 51...
Rd1+ {[%clk 0:01:37.7]} 52. Rd7 {[%clk 0:00:44]} 52... Rxd7+ {[%clk 0:01:36.8]}
53. Kxd7 {[%clk 0:00:44]} 53... g6 {[%clk 0:01:37.1]} 54. e8=Q {[%clk 0:00:43]}
54... gxh5 {[%clk 0:01:36.7]} 55. gxh5 {[%clk 0:00:42]} 55... Kg7 {[%clk
0:01:36.8]} 56. Ke7 {[%clk 0:00:41.9]} 56... Kh7 {[%clk 0:01:36.6]} 57. Qg6+
{[%clk 0:00:40.5]} 57... Kh8 {[%clk 0:01:35.6]} 58. Qxh6+ {[%clk 0:00:39.6]}
58... Kg8 {[%clk 0:01:35.9]} 59. Qg6+ {[%clk 0:00:40]} 59... Kh8 {[%clk
0:01:35.8]} 60. Qf6+ {[%clk 0:00:38.7]} 60... Kh7 {[%clk 0:01:35.1]} 61. h6
{[%clk 0:00:38.9]} 61... Kg8 {[%clk 0:01:32.7]} 62. Qg7# {[%clk 0:00:36.3]} 1-0

[Event "Betsys MČR v online bleskovém šachu 2021"]
[Site "Chess.com"]
[Date "2021.04.17"]
[Round "7"]
[White "ReceptiveYoyo"]
[Black "l_pavlasek"]
[Result "1-0"]
[WhiteElo "1353"]
[BlackElo "1662"]
[TimeControl "180+1"]
[EndTime "10:11:07 PDT"]
[Termination "Uživatel ReceptiveYoyo zvítězil matem"]

1. d4 {[%clk 0:03:00.9]} 1... f5 {[%clk 0:02:58.9]} 2. c4 {[%clk 0:03:00]} 2...
Nf6 {[%clk 0:02:58.4]} 3. e3 {[%clk 0:02:59.6]} 3... g6 {[%clk 0:02:58.5]} 4.
Nf3 {[%clk 0:02:59.1]} 4... Bg7 {[%clk 0:02:58.7]} 5. Bd3 {[%clk 0:02:57.5]}
5... d6 {[%clk 0:02:58.8]} 6. O-O {[%clk 0:02:55.8]} 6... O-O {[%clk 0:02:58.4]}
7. Nc3 {[%clk 0:02:51.9]} 7... c6 {[%clk 0:02:54.5]} 8. Re1 {[%clk 0:02:45.3]}
8... Nbd7 {[%clk 0:02:48.6]} 9. e4 {[%clk 0:02:41.7]} 9... fxe4 {[%clk
0:02:42.7]} 10. Nxe4 {[%clk 0:02:42.6]} 10... Nxe4 {[%clk 0:02:40.9]} 11. Bxe4
{[%clk 0:02:42.5]} 11... Nf6 {[%clk 0:02:37.3]} 12. Bd3 {[%clk 0:02:39.3]} 12...
e6 {[%clk 0:02:22.9]} 13. Bg5 {[%clk 0:02:36.3]} 13... Qd7 {[%clk 0:02:17]} 14.
Qe2 {[%clk 0:02:30.9]} 14... a6 {[%clk 0:02:00.3]} 15. b4 {[%clk 0:02:17.1]}
15... b5 {[%clk 0:01:59]} 16. c5 {[%clk 0:02:15.9]} 16... a5 {[%clk 0:01:45.8]}
17. a4 {[%clk 0:02:02.1]} 17... axb4 {[%clk 0:01:38.5]} 18. axb5 {[%clk
0:02:02]} 18... Rxa1 {[%clk 0:01:36.3]} 19. Rxa1 {[%clk 0:02:02.9]} 19... cxb5
{[%clk 0:01:30.8]} 20. Bxb5 {[%clk 0:02:00.8]} 20... Qc7 {[%clk 0:01:19.6]} 21.
cxd6 {[%clk 0:01:54.5]} 21... Qxd6 {[%clk 0:01:16.8]} 22. Bc4 {[%clk 0:01:54.3]}
22... Nd5 {[%clk 0:01:08.2]} 23. Qe4 {[%clk 0:01:47]} 23... Nc3 {[%clk
0:00:59.4]} 24. Qe3 {[%clk 0:01:44.1]} 24... Kh8 {[%clk 0:00:48.4]} 25. Bh6
{[%clk 0:01:38.2]} 25... Nd5 {[%clk 0:00:35.6]} 26. Bxg7+ {[%clk 0:01:35.5]}
26... Kxg7 {[%clk 0:00:34.8]} 27. Qe5+ {[%clk 0:01:33.4]} 27... Qxe5 {[%clk
0:00:33.5]} 28. Nxe5 {[%clk 0:01:32.9]} 28... Nc3 {[%clk 0:00:20.8]} 29. Ra7+
{[%clk 0:01:29.3]} 29... Kh8 {[%clk 0:00:17.9]} 30. Nf7+ {[%clk 0:01:23.5]}
30... Kg8 {[%clk 0:00:17.6]} 31. Nd6 {[%clk 0:01:22.8]} 31... Rd8 {[%clk
0:00:08.3]} 32. Nxc8 {[%clk 0:01:20]} 32... Rxd4 {[%clk 0:00:05.3]} 33. Bxe6+
{[%clk 0:01:18.2]} 33... Kf8 {[%clk 0:00:05]} 34. Rf7+ {[%clk 0:01:14.3]} 34...
Ke8 {[%clk 0:00:03.6]} 35. h3 {[%clk 0:01:13.1]} 35... Rd1+ {[%clk 0:00:02.9]}
36. Kh2 {[%clk 0:01:12.3]} 36... b3 {[%clk 0:00:02.9]} 37. Rxh7 {[%clk 0:01:09]}
37... b2 {[%clk 0:00:02.8]} 38. Rh8# {[%clk 0:01:08.2]} 1-0

[Event "Betsys MČR v online bleskovém šachu 2021"]
[Site "Chess.com"]
[Date "2021.04.17"]
[Round "7"]
[White "honzasoucek"]
[Black "JuliliaR"]
[Result "1-0"]
[WhiteElo "1632"]
[BlackElo "1297"]
[TimeControl "180+1"]
[EndTime "10:11:07 PDT"]
[Termination "Uživatel honzasoucek zvítězil matem"]

1. e4 {[%clk 0:03:00.9]} 1... d5 {[%clk 0:02:57.7]} 2. exd5 {[%clk 0:02:59.6]}
2... Qxd5 {[%clk 0:02:56.1]} 3. Nc3 {[%clk 0:03:00]} 3... Qd6 {[%clk 0:02:55.6]}
4. d4 {[%clk 0:02:59.7]} 4... c6 {[%clk 0:02:55.4]} 5. Be3 {[%clk 0:02:56.5]}
5... Nf6 {[%clk 0:02:53.6]} 6. Nf3 {[%clk 0:02:55.5]} 6... Bg4 {[%clk
0:02:52.4]} 7. Be2 {[%clk 0:02:53.7]} 7... e6 {[%clk 0:02:50.8]} 8. O-O {[%clk
0:02:53]} 8... Qc7 {[%clk 0:02:49]} 9. Ne5 {[%clk 0:02:51.3]} 9... Bxe2 {[%clk
0:02:45.4]} 10. Qxe2 {[%clk 0:02:49.7]} 10... Bd6 {[%clk 0:02:42.3]} 11. Bf4
{[%clk 0:02:48.5]} 11... Nbd7 {[%clk 0:02:40.2]} 12. Rad1 {[%clk 0:02:46.1]}
12... O-O {[%clk 0:02:37.2]} 13. Bg3 {[%clk 0:02:44.4]} 13... Rad8 {[%clk
0:02:29.1]} 14. Kh1 {[%clk 0:02:31.2]} 14... Rfe8 {[%clk 0:02:24.4]} 15. f4
{[%clk 0:02:31]} 15... Nd5 {[%clk 0:02:17.2]} 16. Ne4 {[%clk 0:02:25.7]} 16...
Nxe5 {[%clk 0:02:10.7]} 17. fxe5 {[%clk 0:02:04.4]} 17... Bf8 {[%clk 0:02:03.9]}
18. Bh4 {[%clk 0:01:49.7]} 18... Rd7 {[%clk 0:02:01]} 19. Rf3 {[%clk 0:01:21.2]}
19... Ne7 {[%clk 0:01:55.3]} 20. Nd6 {[%clk 0:00:58.1]} 20... Ng6 {[%clk
0:01:48.9]} 21. Nxe8 {[%clk 0:00:54.6]} 21... Qb6 {[%clk 0:01:43.1]} 22. Bf2
{[%clk 0:00:45.4]} 22... Qxb2 {[%clk 0:01:37.5]} 23. h4 {[%clk 0:00:31.4]} 23...
Qxa2 {[%clk 0:01:29.8]} 24. h5 {[%clk 0:00:31.3]} 24... Ne7 {[%clk 0:01:26.7]}
25. Rg3 {[%clk 0:00:29.9]} 25... g6 {[%clk 0:01:24.3]} 26. Nf6+ {[%clk
0:00:28.4]} 26... Kg7 {[%clk 0:01:19.9]} 27. Nxd7 {[%clk 0:00:27.9]} 27... Nf5
{[%clk 0:01:16.1]} 28. Rh3 {[%clk 0:00:20.4]} 28... Qd5 {[%clk 0:01:12.9]} 29.
Nf6 {[%clk 0:00:19.3]} 29... Qa5 {[%clk 0:01:03.6]} 30. hxg6 {[%clk 0:00:19.3]}
30... Nh6 {[%clk 0:00:55.2]} 31. Qe3 {[%clk 0:00:17.1]} 31... Be7 {[%clk
0:00:49.7]} 32. Qxh6+ {[%clk 0:00:16.2]} 32... Kh8 {[%clk 0:00:44]} 33. g7#
{[%clk 0:00:16.7]} 1-0

[Event "Betsys MČR v online bleskovém šachu 2021"]
[Site "Chess.com"]
[Date "2021.04.17"]
[Round "7"]
[White "alenka777"]
[Black "Tassa15"]
[Result "1-0"]
[WhiteElo "1288"]
[BlackElo "871"]
[TimeControl "180+1"]
[EndTime "10:11:07 PDT"]
[Termination "Uživatel alenka777 zvítězil po vzdání soupeře"]

1. e4 {[%clk 0:03:00.9]} 1... d5 {[%clk 0:02:58.9]} 2. exd5 {[%clk 0:02:57]}
2... Qxd5 {[%clk 0:02:58.1]} 3. Nc3 {[%clk 0:02:51.9]} 3... Qd6 {[%clk
0:02:57.8]} 4. Bc4 {[%clk 0:02:50.4]} 4... c6 {[%clk 0:02:56.3]} 5. Bb3 {[%clk
0:02:49.8]} 5... Nf6 {[%clk 0:02:55.6]} 6. Qf3 {[%clk 0:02:48.2]} 6... Bg4
{[%clk 0:02:49.5]} 7. Qe3 {[%clk 0:02:42.6]} 7... e6 {[%clk 0:02:47.7]} 8. f3
{[%clk 0:02:39.6]} 8... Bf5 {[%clk 0:02:43.8]} 9. g4 {[%clk 0:02:34.8]} 9... Bg6
{[%clk 0:02:41.6]} 10. d3 {[%clk 0:02:34.6]} 10... h6 {[%clk 0:02:41.3]} 11. Bd2
{[%clk 0:02:34.1]} 11... Qc7 {[%clk 0:02:37.9]} 12. O-O-O {[%clk 0:02:27.5]}
12... Nbd7 {[%clk 0:02:36.8]} 13. f4 {[%clk 0:02:23.8]} 13... Bc5 {[%clk
0:02:28]} 14. Qg3 {[%clk 0:02:20.4]} 14... O-O-O {[%clk 0:02:24.9]} 15. Be3
{[%clk 0:02:07.1]} 15... Bxe3+ {[%clk 0:02:09.2]} 16. Qxe3 {[%clk 0:02:06.1]}
16... a6 {[%clk 0:02:08.3]} 17. h4 {[%clk 0:01:49]} 17... Nxg4 {[%clk
0:02:06.9]} 18. Qg3 {[%clk 0:01:48.1]} 18... Ngf6 {[%clk 0:01:59.5]} 19. Nge2
{[%clk 0:01:47.2]} 19... Nc5 {[%clk 0:01:49.8]} 20. Bc4 {[%clk 0:01:37.1]} 20...
Nh5 {[%clk 0:01:30.3]} 21. Qe3 {[%clk 0:01:27.2]} 21... Nf6 {[%clk 0:01:25.4]}
22. Qxc5 {[%clk 0:01:13.5]} 22... Ng4 {[%clk 0:01:10.4]} 23. Rhg1 {[%clk
0:01:05.5]} 23... Nf6 {[%clk 0:00:59.3]} 24. h5 {[%clk 0:01:01.7]} 24... Bh7
{[%clk 0:00:57.5]} 25. Nd4 {[%clk 0:00:57.3]} 25... Rd6 {[%clk 0:00:49.6]} 26.
f5 {[%clk 0:00:53.8]} 26... exf5 {[%clk 0:00:45.8]} 27. Nxf5 {[%clk 0:00:52]}
27... Bxf5 {[%clk 0:00:44.8]} 28. Qxf5+ {[%clk 0:00:51]} 28... Kb8 {[%clk
0:00:26.3]} 29. Rxg7 {[%clk 0:00:49.4]} 29... Re8 {[%clk 0:00:19.3]} 30. Rxf7
{[%clk 0:00:46.4]} 30... Ng8 {[%clk 0:00:12.9]} 31. Rxc7 {[%clk 0:00:44.4]} 1-0